Cogmind - Beta 14 @@@ ROGUE MODE // 2024.11.29 @ 12:06:59 Player: skye Result: Self-destructed Performance ------------- Evolutions (9) 4500 Regions Visited (20) 4000 Robots Destroyed (116) 580 Value Destroyed (3183) 3183 Prototype IDs (31) 620 Alien Tech Used (0) 0 Bonus (1786) 1786 TOTAL SCORE: 14669 Bonus ------- Triggered Max Security 1000 High Alert Combat Kills 64 Follower Combat Kills 32 Entered DSFs 500 Aligned with FarCom 300 Friendly Fire -110 Cogmind --------- Core Integrity 20/1600 Matter 254/300 Energy 100/100 System Corruption 0% Temperature Cool (0) Movement Core (50) Location -1/Access Parts ------- > --- POWER (2) -------- (None) > --- PROPULSION (11) -- (None) > --- UTILITY (10) ----- Improved Signal Interpreter Advanced Hacking Suite > --- WEAPON (2) ------- (None) > --- INVENTORY (5) ---- Improved Terrain Scanner Improved Transmission Jammer Improved System Restoration Module Hypervelocity Railgun Advanced Datajack Peak State ------------ > --- POWER ------------ Quantum Reactor Light Quantum Reactor > --- PROPULSION ------- Xenon Bombardment Thruster Xenon Bombardment Thruster Nuclear Pulse Array Field Propulsion Array Diametric Drive Diametric Drive Impulse Thruster Array > --- UTILITY ---------- Advanced Cooling System Small Storage Unit Improved Signal Interpreter Advanced Terrain Scan Processor Advanced ECM Suite Improved Focal Shield Improved Hacking Suite Advanced Hacking Suite Advanced System Shield > --- WEAPON ----------- Hypervelocity Gauss Rifle Lance > --- INVENTORY -------- Quantum Reactor Advanced Sensor Array Improved Terrain Scanner Improved Transmission Jammer Improved Phase Shifter Advanced Hacking Suite Micro-nuke Launcher Advanced Datajack [Rating: 141] Favorites ----------- Power Light Nuclear Core Engine Ion Engine Power Core Light Nuclear Core Reactor Light Antimatter Reactor Propulsion Light Treads Treads Light Treads Leg Biometal Leg Wheel Compact Wheel Hover Unit Improved Gyrokinetic Inverter Flight Unit Cesium-ion Thruster Utility Hacking Suite Device Improved Heat Sink Storage Small Storage Unit Processor Advanced Terrain Scan Processor Hackware Hacking Suite Protection Improved Light Armor Plating Weapon Heavy Assault Rifle Energy Gun Beam Rifle Ballistic Gun Heavy Assault Rifle Ballistic Cannon Improved Light Cannon Launcher Long-range Missile Launcher Special Weapon Remote Datajack Slashing Weapon Chainsword Piercing Weapon Heavy Pick Special Melee Weapon Improved Datajack Build | -11 -10 -10 -9 -9 -9 -8 -8 -7 -6 -6 -6 -5 -5 -5 -5 -4 -3 -2 -2 -1 ------- Run | Yrd Mat Min Mat Min Exi Min Mat Fac Fac Was Fac Fac Was Fac DSF Fac Res Res Tes Acc Slots Evolved 18 | . . . 2 . . . 2 2 2 . . 2 . . . 2 2 2 . 2 Power 1 | . . . . . . . . . . . . . . . . 1 . . . . Propulsion 9 | . . . 1 . . . 1 1 1 . . 1 . . . 1 1 1 . 1 Utility 8 | . . . 1 . . . 1 1 1 . . 1 . . . . 1 1 . 1 Weapon . | . . . . . . . . . . . . . . . . . . . . . Parts Attached 209 | 10 4 . 26 9 1 . 25 23 12 5 18 7 1 4 5 20 8 17 1 13 Power 26 | 1 . . 2 1 . . 3 2 2 . 3 1 . . . 3 1 5 . 2 Engine 7 | 1 . . 1 1 . . 1 . . . 2 1 . . . . . . . . Core 10 | . . . 1 . . . 2 2 2 . 1 . . . . 2 . . . . Reactor 9 | . . . . . . . . . . . . . . . . 1 1 5 . 2 Propulsion 76 | 3 1 . 10 2 . . 7 5 4 3 7 1 . 2 4 10 4 5 . 8 Treads 14 | 1 . . 6 1 . . 6 . . . . . . . . . . . . . Leg 1 | . . . . . . . . . . . . . . . . . . . . 1 Wheel 11 | 2 1 . 4 1 . . 1 . . . . . . . . . . . . 2 Hover 1 | . . . . . . . . . . . . . . . . . . . . 1 Flight 49 | . . . . . . . . 5 4 3 7 1 . 2 4 10 4 5 . 4 Utility 55 | 2 1 . 5 3 . . 6 8 5 2 3 4 1 2 . 6 2 4 . 1 Device 23 | 1 . . 2 1 . . 2 . 3 1 . 1 1 1 . 5 1 3 . 1 Storage 5 | 1 1 . . . . . 1 1 . . 1 . . . . . . . . . Processor 4 | . . . . . . . . 1 . . . 2 . . . . 1 . . . Hackware 10 | . . . . . . . . 3 1 1 1 1 . 1 . 1 . 1 . . Protection 13 | . . . 3 2 . . 3 3 1 . 1 . . . . . . . . . Artifact . | . . . . . . . . . . . . . . . . . . . . . Weapon 52 | 4 2 . 9 3 1 . 9 8 1 . 5 1 . . 1 1 1 3 1 2 Energy Gun 9 | 1 . . 4 . . . 3 . . . . . . . . . . . . 1 Energy Cannon . | . . . . . . . . . . . . . . . . . . . . . Ballistic Gun 19 | 3 2 . 5 1 1 . 3 1 . . 1 . . . . . . 1 1 . Ballistic Cannon 1 | . . . . 1 . . . . . . . . . . . . . . . . Launcher 10 | . . . . 1 . . 2 1 . . 2 . . . 1 . . 2 . 1 Special Weapon 1 | . . . . . . . . 1 . . . . . . . . . . . . Impact Weapon . | . . . . . . . . . . . . . . . . . . . . . Slashing Weapon 3 | . . . . . . . 1 2 . . . . . . . . . . . . Piercing Weapon 3 | . . . . . . . . . . . 2 . . . . . 1 . . . Special Melee Weapon 6 | . . . . . . . . 3 1 . . 1 . . . 1 . . . . Unidentified Prototypes 3 | . . . . . . . 1 . . . 1 . . . . . 1 . . . Parts Lost 58 | . . . 7 3 . . 6 1 . . 7 2 . . 1 . 1 4 2 24 Power 8 | . . . 2 . . . 1 . . . 2 . . . . . . . 1 2 Propulsion 27 | . . . 2 2 . . 2 . . . 3 . . . . . 1 4 1 12 Utility 14 | . . . 1 1 . . 2 1 . . 1 1 . . . . . . . 7 Weapon 9 | . . . 2 . . . 1 . . . 1 1 . . 1 . . . . 3 Highest Loss Streak 23 | . . . 3 2 . . 4 1 . . 7 1 . . 1 . 1 1 2 23 To Critical Strikes . | . . . . . . . . . . . . . . . . . . . . . Average Slot Usage (%) 87 | . 100 100 92 91 100 100 97 74 76 80 75 82 88 92 91 84 81 87 79 40 Engine 4 | . 14 14 5 10 11 11 3 . . . . 5 5 5 5 5 3 . . . Core 2 | . . . 2 . . . 5 6 5 6 2 . . . . 2 . . . . Treads 11 | . 14 14 20 18 22 22 32 . . . . . . . . . . . . . Wheel 4 | . 14 14 11 9 11 11 1 . . . . . . . . . . . . . Flight 10 | . . . . . . . . 14 17 20 20 28 29 33 32 26 24 31 24 10 Device 10 | . 14 14 10 14 11 11 10 7 10 6 6 3 5 10 11 10 13 12 13 5 Storage 8 | . 14 14 11 11 11 11 9 7 6 6 5 5 5 5 5 5 4 4 4 2 Processor 1 | . . . . . . . . 5 . . . 5 5 5 5 5 4 8 8 6 Hackware 8 | . . . . . . . . 12 20 22 22 17 17 17 17 15 14 13 13 7 Protection 5 | . . . 10 7 11 11 15 2 1 4 3 5 5 . . . . . . . Energy Gun 2 | . . . 9 . . . 7 2 . . . . . . . . . . . . Ballistic Gun 8 | . 28 28 11 11 16 22 10 1 . . . . . . . . . 3 4 1 Slashing Weapon 1 | . . . . . . . . 6 6 6 1 . . . . . . . . . Piercing Weapon 1 | . . . . . . . . . . . 3 5 5 5 5 5 4 4 4 2 Special Melee Weapon 1 | . . . . . . . . 3 5 6 2 . 5 5 5 1 4 . . . Peak Build Rating 141 | 9 11 12 20 19 21 21 41 65 70 77 75 75 75 82 88 114 137 141 136 132 Average Rating 49 | 6 10 11 16 16 19 21 33 57 67 69 61 67 74 79 85 109 126 135 131 72 On Entrance 57 | . 9 11 12 13 19 21 21 33 61 69 71 59 75 74 81 88 114 128 133 123 Naked Turns . | . . . . . . . . . . . . . . . . . . . . . Heaviest Build 105 | 14 90 90 97 100 100 98 105 95 27 24 29 25 25 24 31 43 39 56 57 46 Greatest Support 86 | 26 16 16 40 40 16 16 86 55 60 65 60 34 34 43 46 59 69 71 63 72 Greatest Overweight (x) 10 | 1 8 5 8 9 6 6 10 2 2 . 1 . . . . . . . . 1 Average Overweight (x) . | . 6 5 5 6 6 6 2 . . . . . . . . . . . . . Largest Inventory Capacity 25 | 8 25 25 25 25 25 25 25 25 8 8 8 8 8 8 8 8 8 8 8 8 Average Capacity 16 | 7 23 25 25 25 25 25 25 8 8 8 7 8 8 8 8 8 8 8 8 6 Most Carried 25 | 8 25 25 25 24 24 24 25 24 8 8 8 8 8 8 8 8 8 8 8 8 Average Carried 15 | 3 19 23 24 21 23 24 24 8 7 7 5 6 8 7 8 7 7 7 8 6 Final Capacity 25 | 8 25 25 25 25 25 25 25 8 8 8 8 8 8 8 8 8 8 8 8 5 Final Carried 25 | 8 22 25 23 24 24 24 23 8 8 8 4 8 8 8 8 8 7 8 8 5 Class Distribution -------------------- 26% | Mutant 23% | Scavenger-Mutant 17% | Hacker-Mutant 9% | Hacker-Scout 9% | Hacker-Ninja 8% | Hacker-Sprinter 3% | Skirmisher Dominant Class ---------------- Mutant | -10/Materials Mutant | -10/Mines Scavenger-Mutant | -9/Materials Scavenger-Mutant | -9/Mines Scavenger-Mutant | -9/Exiles Scavenger-Mutant | -8/Mines Mutant | -8/Materials Hacker-Mutant | -7/Factory Hacker-Mutant | -6/Factory Hacker-Mutant | -6/Waste Hacker-Scout | -6/Factory Hacker-Sprinter | -5/Factory Hacker-Sprinter | -5/Waste Hacker-Ninja | -5/Factory Hacker-Ninja | -5/DSF Hacker-Ninja | -4/Factory Hacker-Ninja | -3/Research Hacker-Sprinter | -2/Research Hacker-Sprinter | -2/Testing Mutant | -1/Access Resources | -11 -10 -10 -9 -9 -9 -8 -8 -7 -6 -6 -6 -5 -5 -5 -5 -4 -3 -2 -2 -1 ----------- Run | Yrd Mat Min Mat Min Exi Min Mat Fac Fac Was Fac Fac Was Fac DSF Fac Res Res Tes Acc Matter Collected 3287 | 312 328 64 417 164 . . 459 445 . 180 233 40 . . . 407 . 189 30 19 Remotely 60 | . . . . 60 . . . . . . . . . . . . . . . . Salvage Created 3710 | 63 773 121 895 130 . . 786 168 . . 175 40 . . . 84 . 405 30 40 Parts 243 | 8 45 21 52 8 . . 47 14 . . 10 4 . . . 10 . 19 1 4 Haulers Intercepted 6 | . 2 . 1 . . . 2 . . . . . . . . . . 1 . . Recyclers Shooed 6 | . 5 . . . . . . . . . . . . . . . . 1 . . Parts Field Recycled . | . . . . . . . . . . . . . . . . . . . . . Retrieved Matter . | . . . . . . . . . . . . . . . . . . . . . Parts Self-Destructed . | . . . . . . . . . . . . . . . . . . . . . Prevented . | . . . . . . . . . . . . . . . . . . . . . Kills | -11 -10 -10 -9 -9 -9 -8 -8 -7 -6 -6 -6 -5 -5 -5 -5 -4 -3 -2 -2 -1 ------- Run | Yrd Mat Min Mat Min Exi Min Mat Fac Fac Was Fac Fac Was Fac DSF Fac Res Res Tes Acc Combat Hostiles Destroyed 82 | . 10 9 17 5 . . 21 5 . . 4 . . . . 4 . 5 . 2 Melee 3 | . . . . . . . . 2 . . . . . . . . . 1 . . Guns 50 | . 10 9 17 1 . . 12 . . . 1 . . . . . . . . . Cannons 2 | . . . . 2 . . . . . . . . . . . . . . . . AOE 27 | . . . . 2 . . 9 3 . . 3 . . . . 4 . 4 . 2 Classes Destroyed 15 | 2 6 . 2 1 . . 3 . . . 1 . . . . . . . . . Worker 6 | . . . . . . . 1 1 . . 3 . . . . 1 . . . . Builder 2 | . 2 . . . . . . . . . . . . . . . . . . . Tunneler 3 | 1 . . . . . . . . . . 2 . . . . . . . . . Hauler 6 | . 2 . 1 . . . 2 . . . . . . . . . . 1 . . Recycler 6 | 1 4 . . . . . . . . . . . . . . . . 1 . . Operator 5 | . 1 . 1 . . . 1 1 . . . . . . . . . . 1 . Watcher 5 | . 1 . 1 . . . . . . . . 1 . . . 1 . 1 . . Swarmer 35 | . 3 9 2 . . . 3 4 . . 3 . . . . 4 . 5 . 2 Cutter 1 | . . . . . . . . . . . 1 . . . . . . . . . Grunt 32 | . 7 . 9 4 . . 11 1 . . . . . . . . . . . . Brawler 1 | . . . . 1 . . . . . . . . . . . . . . . . Duelist 1 | . . . 1 . . . . . . . . . . . . . . . . . Sentry 11 | . . . 6 . . . 5 . . . . . . . . . . . . . Hunter 1 | . . . . . . . 1 . . . . . . . . . . . . . Heavy 1 | . . . . . . . 1 . . . . . . . . . . . . . Best Kill Streak 8 | 2 4 6 3 2 . . 8 3 . . 4 1 . . . 4 . 5 1 2 Combat Bots Only 7 | . 2 6 3 2 . . 7 3 . . 4 . . . . 4 . 4 . 2 Max Kills in Single Turn 3 | 1 2 2 1 1 . . 2 2 . . 2 1 . . . 2 . 3 1 2 Gunslinging 1 | . . 1 . . . . . . . . . . . . . . . . . . Exploded 3 | . . . . 1 . . 2 2 . . 2 . . . . 2 . 3 . 2 Melee 1 | . . . . . . . . 1 . . . . . . . . . 1 . . Uniques/NPCs Destroyed . | . . . . . . . . . . . . . . . . . . . . . Combat | -11 -10 -10 -9 -9 -9 -8 -8 -7 -6 -6 -6 -5 -5 -5 -5 -4 -3 -2 -2 -1 -------- Run | Yrd Mat Min Mat Min Exi Min Mat Fac Fac Was Fac Fac Was Fac DSF Fac Res Res Tes Acc Hostile Shots Fired 1208 | . 55 39 131 35 . . 185 134 43 . 78 32 . 2 2 25 23 37 55 332 Missed 539 | . 22 15 34 15 . . 63 76 25 . 43 14 . . . 11 15 20 31 155 Damage Taken 11551 | . 396 187 1342 277 . . 2078 1145 226 . 750 276 . 46 141 188 259 336 462 3442 Core 2968 | . 80 33 243 34 . . 281 265 62 . 75 40 . . 65 55 28 . 127 1580 Absorbed by Shields 114 | . . . . . . . . . 114 . . . . . . . . . . . Redirected to Shielding 32 | . . . . . . . . . . . 16 16 . . . . . . . . Ignored by Resistances 163 | . . . . . . . . . . . . . . . . . . . . 163 Regen/Repaired (Parts) 870 | . . . 182 . . . . 24 81 . 457 . . . . 126 . . . . Core Remaining (%) 74 | 100 . 54 . . . 30 48 62 . . 83 . . . 89 95 97 . 91 . Volleys Fired 298 | 3 63 12 78 20 . . 93 2 . . 17 . . . . 3 . 4 . 3 Largest 2 | 2 2 2 2 2 . . 2 1 . . 1 . . . . 1 . 1 . 1 Hottest 112 | 40 40 40 112 62 . . 88 33 . . 43 . . . . 43 . 80 . 88 Shots Fired 472 | 6 126 24 128 34 . . 125 2 . . 17 . . . . 3 . 4 . 3 Gun 433 | 6 126 24 128 21 . . 111 . . . 14 . . . . . . 1 . 2 Cannon 9 | . . . . 9 . . . . . . . . . . . . . . . . Launcher 30 | . . . . 4 . . 14 2 . . 3 . . . . 3 . 3 . 1 Special . | . . . . . . . . . . . . . . . . . . . . . Kinetic 338 | 6 126 24 66 30 . . 71 . . . 14 . . . . . . 1 . . Thermal 104 | . . . 62 . . . 40 . . . . . . . . . . . . 2 Explosive 28 | . . . . 4 . . 14 2 . . 3 . . . . 3 . 1 . 1 Electromagnetic 2 | . . . . . . . . . . . . . . . . . . 2 . . Robot Hit Streak 10 | 3 8 4 9 6 . . 10 1 . . 2 . . . . 1 . 4 . 2 Robot Miss Streak 6 | 1 4 4 3 3 . . 5 1 . . 4 . . . . 2 . 6 . 1 Penetration Max . | . . . . . . . . . . . . . . . . . . . . . Secondary Targets 4 | . . 2 1 . . . 1 . . . . . . . . . . . . . Max Gunslinging Chain 1 | . . 1 1 . . . 1 . . . . . . . . . . . . . Shots Hit Robots 329 | 5 77 14 83 21 . . 76 19 2 1 13 2 . . . 3 1 7 3 2 Core Hits 183 | 3 36 9 34 10 . . 48 10 . . 7 1 . . . 7 . 14 1 3 Critical Kills 2 | . 1 . . . . . 1 . . . . . . . . . . . . . Critical Parts Destroyed 2 | . 1 . . . . . . . . . 1 . . . . . . . . . Critical Strikes 11 | . 2 . 3 . . . 4 1 . . 1 . . . . . . . . . Burn 6 | . . . 3 . . . 3 . . . . . . . . . . . . . Destroy 4 | . 2 . . . . . 1 . . . 1 . . . . . . . . . Sever 1 | . . . . . . . . 1 . . . . . . . . . . . . Melee Attacks 155 | . . . . . . . . 44 16 1 18 12 . . . 26 5 20 8 5 Impact . | . . . . . . . . . . . . . . . . . . . . . Slashing 56 | . . . . . . . . 42 12 . 2 . . . . . . . . . Piercing 87 | . . . . . . . . . . . 12 12 . . . 26 4 20 8 5 Sneak Attacks 14 | . . . . . . . . 4 1 . 5 . . . . 1 1 2 . . Combat Hostiles . | . . . . . . . . . . . . . . . . . . . . . Follow-up Attacks . | . . . . . . . . . . . . . . . . . . . . . Damage Inflicted 8840 | 57 882 206 1289 507 . . 2442 929 41 . 820 91 . . . 491 . 653 151 281 Guns 3721 | 57 880 206 1258 213 . . 1021 . . . 25 . . . . . . 7 . 54 Cannons 132 | . . . . 132 . . . . . . . . . . . . . . . . Explosions 2992 | . . . . 162 . . 1415 195 . . 316 . . . . 359 . 331 . 214 Melee 1943 | . . . . . . . . 734 41 . 479 91 . . . 132 . 315 151 . Ramming 52 | . 2 . 31 . . . 6 . . . . . . . . . . . . 13 Kinetic 2725 | 57 880 206 635 345 . . 570 . . . 25 . . . . . . 7 . . Thermal 1128 | . . . 623 . . . 451 . . . . . . . . . . . . 54 Explosive 2852 | . . . . 162 . . 1415 195 . . 316 . . . . 359 . 191 . 214 Electromagnetic 140 | . . . . . . . . . . . . . . . . . . 140 . . Impact . | . . . . . . . . . . . . . . . . . . . . . Slashing 808 | . . . . . . . . 734 41 . 33 . . . . . . . . . Piercing 1135 | . . . . . . . . . . . 446 91 . . . 132 . 315 151 . Highest Corruption 7 | . . . . . . . . 1 . . . . 7 7 2 1 . 1 3 . Average Corruption 1 | . . . . . . . . 1 . . . . 7 3 2 1 . 1 1 . Corruption Purged 5 | . . . . . . . . . . . . . . 5 . . . . . . Corruption Blocked . | . . . . . . . . . . . . . . . . . . . . . Effects 12 | . . . . . . . . . . . . . . 4 1 7 . . . . Message Errors 2 | . . . . . . . . . . . . . . 1 . 1 . . . . Matter Fused 3 | . . . . . . . . . . . . . . 1 . 2 . . . . Energy Discharges 1 | . . . . . . . . . . . . . . . . 1 . . . . Parts Fused 2 | . . . . . . . . . . . . . . 1 1 . . . . . Data Loss (minor) 1 | . . . . . . . . . . . . . . . . 1 . . . . Data Loss (major) 1 | . . . . . . . . . . . . . . . . 1 . . . . Alerts 2 | . . . . . . . . . . . . . . 1 . 1 . . . . Overload Shots . | . . . . . . . . . . . . . . . . . . . . . Overflow Damage 540 | . . . . . . . 60 102 . . 223 11 . . . 50 . 70 24 . Projectiles . | . . . . . . . . . . . . . . . . . . . . . Explosions 136 | . . . . . . . 60 16 . . 37 . . . . 23 . . . . Melee 404 | . . . . . . . . 86 . . 186 11 . . . 27 . 70 24 . Knockbacks 2 | . . . . 2 . . . . . . . . . . . . . . . . Impact . | . . . . . . . . . . . . . . . . . . . . . Kinetic 2 | . . . . 2 . . . . . . . . . . . . . . . . Secondary . | . . . . . . . . . . . . . . . . . . . . . Self-Inflicted Damage 144 | . 1 . 15 . . . 55 . . . 49 . . . . . . 19 . 5 Shots 6 | . . . . . . . 3 . . . 1 . . . . . . 2 . . Rammed 7 | . 1 . 3 . . . . . . . . . . . . . . . . 3 Targets Rammed 9 | . 1 . 3 . . . 2 . . . . . . . . . . . . 3 Kicked . | . . . . . . . . . . . . . . . . . . . . . Crushed 2 | . . . . . . . 2 . . . . . . . . . . . . . Highest Temperature 327 | . 18 . 180 . . . 30 . . . 7 . 5 122 . 327 . 83 . 4 Average Temperature 57 | . 8 . 47 . . . 10 . . . 5 . 5 38 . 78 . 28 . 2 Received Heat Transfer 1880 | . 177 . 582 135 . . 585 177 53 . 27 . . 9 . 27 9 18 54 27 Effects 2 | . . . . . . . . . . . . . . . . 2 . . . . Shutdowns 1 | . . . . . . . . . . . . . . . . 1 . . . . Energy Bleed 1 | . . . . . . . . . . . . . . . . 1 . . . . Siege Activations . | . . . . . . . . . . . . . . . . . . . . . Robots Corrupted . | . . . . . . . . . . . . . . . . . . . . . Combat Hostiles . | . . . . . . . . . . . . . . . . . . . . . Parts Fried 2 | . . . . . . . . . . . . . . . . . . 2 . . Impact Corruptions . | . . . . . . . . . . . . . . . . . . . . . Robots Melted . | . . . . . . . . . . . . . . . . . . . . . Combat Hostiles . | . . . . . . . . . . . . . . . . . . . . . Parts Melted 8 | . . . 5 . . . 3 . . . . . . . . . . . . . Heat Transferred 3145 | . . . 1813 . . . 1258 . . . . . . . . . . . . 74 Parts Sabotaged . | . . . . . . . . . . . . . . . . . . . . . Parts Stolen . | . . . . . . . . . . . . . . . . . . . . . Parts Stripped . | . . . . . . . . . . . . . . . . . . . . . Power Chain Reactions . | . . . . . . . . . . . . . . . . . . . . . Alert | -11 -10 -10 -9 -9 -9 -8 -8 -7 -6 -6 -6 -5 -5 -5 -5 -4 -3 -2 -2 -1 ------- Run | Yrd Mat Min Mat Min Exi Min Mat Fac Fac Was Fac Fac Was Fac DSF Fac Res Res Tes Acc Peak Influence 1689 | 10 148 250 354 259 . . 363 453 210 21 168 174 70 141 98 275 182 546 1689 1230 Initial 1100 | . 6 10 97 94 . . . 164 155 21 14 16 25 49 98 46 49 102 211 1100 Average 152 | 3 60 120 191 147 . . 78 217 97 21 66 65 40 76 94 70 112 428 1651 1060 Maximum Alert Level 5 | . . 1 1 1 . . 1 2 1 . . . . . . 1 . 2 5 4 Low Security (%) 78 | 100 100 82 56 70 . 100 95 34 89 100 100 100 100 100 100 98 100 6 . . Level 1 16 | . . 17 43 29 . . 4 62 10 . . . . . . 1 . 28 . . Level 2 2 | . . . . . . . . 2 . . . . . . . . . 64 . . Level 3 . | . . . . . . . . . . . . . . . . . . . . 54 Level 4 . | . . . . . . . . . . . . . . . . . . . . 45 Level 5 . | . . . . . . . . . . . . . . . . . . . . . High Security . | . . . . . . . . . . . . . . . . . . . . . Max Security . | . . . . . . . . . . . . . . . . . . . 99 . Squads Dispatched 30 | . . . 1 . . . 3 4 5 . 3 . . . 1 2 1 2 6 2 Investigation 7 | . . . 1 . . . . 1 3 . . . . . . 1 . 1 . . Extermination 4 | . . . . . . . . 1 1 . 1 . . . . . . 1 . . Reinforcement 13 | . . . . . . . 3 2 1 . 2 . . . 1 1 1 . . 2 Assault 6 | . . . . . . . . . . . . . . . . . . . 6 . Garrison . | . . . . . . . . . . . . . . . . . . . . . Intercept . | . . . . . . . . . . . . . . . . . . . . . Searches Triggered . | . . . . . . . . . . . . . . . . . . . . . Construction Impeded 2 | . . . . . . . 1 1 . . . . . . . . . . . . Haulers Reinforced . | . . . . . . . . . . . . . . . . . . . . . Active Scanning Responses . | . . . . . . . . . . . . . . . . . . . . . Cargo Convoy Interrupts . | . . . . . . . . . . . . . . . . . . . . . Stealth | -11 -10 -10 -9 -9 -9 -8 -8 -7 -6 -6 -6 -5 -5 -5 -5 -4 -3 -2 -2 -1 --------- Run | Yrd Mat Min Mat Min Exi Min Mat Fac Fac Was Fac Fac Was Fac DSF Fac Res Res Tes Acc Distress Signals 16 | . 1 . 3 1 . . 3 2 2 . . 1 . . . . . 1 . 2 Communications Jammed 5 | . . . . . . . . . . . . . . . . 4 . 1 . . Distress Signals 5 | . . . . . . . . . . . . . . . . 4 . 1 . . Times Spotted 318 | . 22 8 38 7 . . 37 40 22 . 14 14 4 3 1 21 6 17 38 26 Peak Tracking Total 22 | . 5 4 5 3 . . 6 10 4 . 8 8 4 2 2 5 5 4 22 12 Tactical Retreats 59 | . 1 . 3 1 . . 2 10 10 . 4 4 . 2 . 5 2 5 4 6 Traps | -11 -10 -10 -9 -9 -9 -8 -8 -7 -6 -6 -6 -5 -5 -5 -5 -4 -3 -2 -2 -1 ------- Run | Yrd Mat Min Mat Min Exi Min Mat Fac Fac Was Fac Fac Was Fac DSF Fac Res Res Tes Acc Traps Triggered 11 | . . . 1 . . . . 1 1 . 1 1 . 2 . 4 . . . . Indirectly . | . . . . . . . . . . . . . . . . . . . . . Trap Hack Attempts 10 | . . . . . . . . 2 2 . 5 1 . . . . . . . . Triggered . | . . . . . . . . . . . . . . . . . . . . . Disarmed 3 | . . . . . . . . 2 1 . . . . . . . . . . . Reprogrammed 3 | . . . . . . . . . . . 2 1 . . . . . . . . Reused 1 | . . . . . . . . . . . 1 . . . . . . . . . Traps Extracted . | . . . . . . . . . . . . . . . . . . . . . Installed . | . . . . . . . . . . . . . . . . . . . . . Triggered 1 | . . . . . . . . . . . 1 . . . . . . . . . Machines | -11 -10 -10 -9 -9 -9 -8 -8 -7 -6 -6 -6 -5 -5 -5 -5 -4 -3 -2 -2 -1 ---------- Run | Yrd Mat Min Mat Min Exi Min Mat Fac Fac Was Fac Fac Was Fac DSF Fac Res Res Tes Acc Machines Disabled 8 | . . 1 . 1 . . 3 1 . . . . . . . 1 . . 1 . Max in Single Turn 2 | . . 1 . 1 . . 2 1 . . . . . . . 1 . . 1 . Garrison Access 7 | . . . . . . . 1 1 1 . . . . . . 2 . 1 . 1 Machines Repaired . | . . . . . . . . . . . . . . . . . . . . . Machines Dismantled . | . . . . . . . . . . . . . . . . . . . . . Machines Sabotaged . | . . . . . . . . . . . . . . . . . . . . . Overloaded Fab Kills . | . . . . . . . . . . . . . . . . . . . . . Hacking | -11 -10 -10 -9 -9 -9 -8 -8 -7 -6 -6 -6 -5 -5 -5 -5 -4 -3 -2 -2 -1 --------- Run | Yrd Mat Min Mat Min Exi Min Mat Fac Fac Was Fac Fac Was Fac DSF Fac Res Res Tes Acc Machines Accessed 103 | . 7 . 10 . 1 . 8 13 21 . 6 4 . 4 . 24 1 2 . 2 Terminals 63 | . 7 . 7 . . . 5 8 11 . 4 2 . 4 . 13 1 . . 1 Fabricators 6 | . . . . . . . . 1 2 . . 1 . . . 2 . . . . Repair Stations 12 | . . . 1 . . . 1 1 3 . 2 . . . . 3 . 1 . . Recycling Units 8 | . . . 1 . . . . 2 2 . . . . . . 3 . . . . Scanalyzers 6 | . . . 1 . . . 1 . 2 . . 1 . . . 1 . . . . Garrison Access 7 | . . . . . . . 1 1 1 . . . . . . 2 . 1 . 1 Total Hacks 356 | . 17 . 42 . 1 . 25 27 72 . 45 8 . 11 . 96 1 3 . 8 Successful 227 | . 7 . 33 . 1 . 12 12 44 . 29 5 . 8 . 70 1 1 . 4 Failed 127 | . 10 . 9 . . . 13 15 27 . 16 3 . 3 . 25 . 2 . 4 Catastrophic 18 | . 2 . 1 . . . 1 1 6 . 1 . . 1 . 2 . 1 . 2 Database Lockouts 2 | . . . . . . . . . 1 . . . . . . 1 . . . . Manual 203 | . 17 . 18 . 1 . 13 18 36 . 22 5 . 8 . 59 . 1 . 5 Terminals 237 | . 17 . 15 . . . 18 20 46 . 29 5 . 11 . 68 1 . . 7 Fabricators 13 | . . . . . . . . 1 7 . . 1 . . . 4 . . . . Repair Stations 47 | . . . 10 . . . 2 2 8 . 16 . . . . 8 . 1 . . Recycling Units 15 | . . . 2 . . . . 3 3 . . . . . . 7 . . . . Scanalyzers 33 | . . . 15 . . . 3 . 7 . . 2 . . . 6 . . . . Garrison Access 10 | . . . . . . . 2 1 1 . . . . . . 3 . 2 . 1 Terminal Hacks 84 | . 2 . 1 . 1 . 4 1 17 . 12 2 . 7 . 34 1 . . 2 Record 24 | . . . . . . . . . 3 . 1 . . 3 . 17 . . . . Robot Schematic 1 | . . . . . . . . . . . . . . . . 1 . . . . Robot Analysis 2 | . . . . . . . . . 1 . 1 . . . . . . . . . Prototype ID Bank 2 | . . . . . . . . . . . 1 . . . . 1 . . . . Open DSF 4 | . . . . . . . . . . . . . . 2 . 1 1 . . . Level Access Points 3 | . . . . . . . . . . . 1 . . 1 . 1 . . . . Branch Access Points 4 | . . . . . . . 1 . 1 . 1 1 . . . . . . . . Emergency Access Points 1 | . . . . . . . . . . . . . . . . 1 . . . . Terminal Index 7 | . 2 . 1 . . . 2 . 1 . . . . . . 1 . . . . Repair Station Index 1 | . . . . . . . . . . . . . . . . 1 . . . . Alert Level 5 | . . . . . . . 1 . 1 . 1 . . . . 1 . . . 1 Unreport Threat 6 | . . . . . . . . 1 1 . . 1 . . . 2 . . . 1 Locate Traps 5 | . . . . . . . . . 1 . . . . 1 . 3 . . . . Reprogram Traps 1 | . . . . . . . . . . . 1 . . . . . . . . . Dispatch Records 2 | . . . . . . . . . 1 . . . . . . 1 . . . . Recall Investigation 3 | . . . . . . . . . 2 . . . . . . 1 . . . . Recall Extermination 2 | . . . . . . . . . 1 . 1 . . . . . . . . . Recall Reinforcements 3 | . . . . . . . . . 2 . 1 . . . . . . . . . Registered Components 1 | . . . . . . . . . 1 . . . . . . . . . . . Zone Layout 6 | . . . . . . . . . 1 . 3 . . . . 2 . . . . Derelict Proto ID Bank 1 | . . . . . 1 . . . . . . . . . . . . . . . Fabricator Hacks 10 | . . . . . . . . 1 5 . . . . . . 4 . . . . Network Status 3 | . . . . . . . . . 1 . . . . . . 2 . . . . Load Schematic 3 | . . . . . . . . . 2 . . . . . . 1 . . . . Build 4 | . . . . . . . . 1 2 . . . . . . 1 . . . . Repair Station Hacks 40 | . . . 8 . . . 1 2 7 . 14 . . . . 8 . . . . Scan Component 21 | . . . 4 . . . 1 1 4 . 7 . . . . 4 . . . . Repair 19 | . . . 4 . . . . 1 3 . 7 . . . . 4 . . . . Recycling Unit Hacks 8 | . . . 1 . . . . 1 2 . . . . . . 4 . . . . Report Inventory 6 | . . . 1 . . . . 1 2 . . . . . . 2 . . . . Retrieve Components 2 | . . . . . . . . . . . . . . . . 2 . . . . Scanalyzer 27 | . . . 15 . . . 2 . 4 . . 2 . . . 4 . . . . Insert Component 13 | . . . 7 . . . 1 . 3 . . 1 . . . 1 . . . . Analyze 14 | . . . 8 . . . 1 . 1 . . 1 . . . 3 . . . . Garrison Access Hacks 6 | . . . . . . . 1 1 1 . . . . . . 2 . . . 1 Seal Access 6 | . . . . . . . 1 1 1 . . . . . . 2 . . . 1 Unauthorized Hacks 52 | . 5 . 8 . . . 4 6 8 . 3 1 . 1 . 14 . 1 . 1 Terminals 45 | . 5 . 7 . . . 4 4 7 . 3 1 . 1 . 12 . . . 1 Assimilate 7 | . . . 1 . . . . 1 4 . . . . . . 1 . . . . Botnet 38 | . 5 . 6 . . . 4 3 3 . 3 1 . 1 . 11 . . . 1 Fabricators . | . . . . . . . . . . . . . . . . . . . . . Repair Stations . | . . . . . . . . . . . . . . . . . . . . . Recycling Units 6 | . . . 1 . . . . 2 1 . . . . . . 2 . . . . Monitor 1 | . . . . . . . . . . . . . . . . 1 . . . . Reject 5 | . . . 1 . . . . 2 1 . . . . . . 1 . . . . Scanalyzers . | . . . . . . . . . . . . . . . . . . . . . Garrison Access 1 | . . . . . . . . . . . . . . . . . . 1 . . Jam 1 | . . . . . . . . . . . . . . . . . . 1 . . Data Cores Recovered 2 | . 1 . 1 . . . . . . . . . . . . . . . . . Used . | . . . . . . . . . . . . . . . . . . . . . Hacking Detections 80 | . 7 . 8 . . . 7 10 17 . 5 3 . 2 . 18 . 2 . 1 Full Trace Events 5 | . . . . . . . . 1 3 . . . . . . 1 . . . . Feedback Events . | . . . . . . . . . . . . . . . . . . . . . Feedback Blocked . | . . . . . . . . . . . . . . . . . . . . . Robot Schematics Acquired 1 | . . . . . . . . . . . . . . . . 1 . . . . Robots Built 3 | . . . . . . . . 1 . . . . . . . 2 . . . . Authchips . | . . . . . . . . . . . . . . . . . . . . . Time 303 | . . . . . . . . 116 . . . . . . . 187 . . . . Total Robot Build Rating 17 | . . . . . . . . 3 . . . . . . . 14 . . . . Part Schematics Acquired 11 | . . . 7 . . . 1 . 1 . . 1 . . . 1 . . . . Parts Built 4 | . . . . . . . . . 4 . . . . . . . . . . . Authchips . | . . . . . . . . . . . . . . . . . . . . . Time 109 | . . . . . . . . . 109 . . . . . . . . . . . Total Part Build Rating 12 | . . . . . . . . . 12 . . . . . . . . . . . Parts Repaired 19 | . . . 4 . . . . 1 3 . 7 . . . . 4 . . . . Time 812 | . . . 128 . . . . 38 95 . 315 . . . . 236 . . . . Parts Recycled . | . . . . . . . . . . . . . . . . . . . . . Recycled Matter . | . . . . . . . . . . . . . . . . . . . . . Retrieved Matter . | . . . . . . . . . . . . . . . . . . . . . Retrieved Components 4 | . . . . . . . . . . . . . . . . 4 . . . . Parts Scanalyzed 11 | . . . 7 . . . 1 . 1 . . 1 . . . 1 . . . . Part Schematics Acquired 11 | . . . 7 . . . 1 . 1 . . 1 . . . 1 . . . . Parts Damaged . | . . . . . . . . . . . . . . . . . . . . . Bothacking | -11 -10 -10 -9 -9 -9 -8 -8 -7 -6 -6 -6 -5 -5 -5 -5 -4 -3 -2 -2 -1 ------------ Run | Yrd Mat Min Mat Min Exi Min Mat Fac Fac Was Fac Fac Was Fac DSF Fac Res Res Tes Acc Used RIF Installer . | . . . . . . . . . . . . . . . . . . . . . Robots Hacked 3 | . . . . . . . . 1 1 . 1 . . . . . . . . . Non-combat 3 | . . . . . . . . 1 1 . 1 . . . . . . . . . Combat . | . . . . . . . . . . . . . . . . . . . . . Robot Hacks Applied 3 | . . . . . . . . 1 1 . 1 . . . . . . . . . parse_system 1 | . . . . . . . . . . . 1 . . . . . . . . . check_alert 2 | . . . . . . . . 1 1 . . . . . . . . . . . Relay Couplers Released . | . . . . . . . . . . . . . . . . . . . . . Fabnet Peak Effective % . | . . . . . . . . . . . . . . . . . . . . . Robots Rewired . | . . . . . . . . . . . . . . . . . . . . . Allies Hacked . | . . . . . . . . . . . . . . . . . . . . . Hacks Repelled . | . . . . . . . . . . . . . . . . . . . . . Allies | -11 -10 -10 -9 -9 -9 -8 -8 -7 -6 -6 -6 -5 -5 -5 -5 -4 -3 -2 -2 -1 -------- Run | Yrd Mat Min Mat Min Exi Min Mat Fac Fac Was Fac Fac Was Fac DSF Fac Res Res Tes Acc Total Allies 12 | . . 3 . . . . . 2 4 . . . . . . 3 . . . . Largest Group 3 | . . 3 3 . . . . 1 2 . . . . . . 2 . . . . Highest-Rated Group 112 | . . 40 40 . . . . 15 52 . . . . . . 112 . . . . Highest-Rated Ally 56 | . . 16 16 . . . . 15 26 . . . . . . 56 . . . . Total Orders 5 | . . . 2 . . . . . 3 . . . . . . . . . . . STAY 1 | . . . 1 . . . . . . . . . . . . . . . . . FOLLOW 1 | . . . 1 . . . . . . . . . . . . . . . . . EXPLORE 3 | . . . . . . . . . 3 . . . . . . . . . . . Ally Attacks 42 | . . . 38 . . . . . . . . . . . . 4 . . . . Total Damage 518 | . . . 374 . . . . . . . . . . . . 144 . . . . Kills 2 | . . . 2 . . . . . . . . . . . . . . . . . Allies Corrupted . | . . . . . . . . . . . . . . . . . . . . . Allies Melted . | . . . . . . . . . . . . . . . . . . . . . Intel | -11 -10 -10 -9 -9 -9 -8 -8 -7 -6 -6 -6 -5 -5 -5 -5 -4 -3 -2 -2 -1 ------- Run | Yrd Mat Min Mat Min Exi Min Mat Fac Fac Was Fac Fac Was Fac DSF Fac Res Res Tes Acc Robot Analysis Total 2 | . . . . . . . . . 1 . 1 . . . . . . . . . Derelict Logs Recovered 2 | . . 1 . 1 . . . . . . . . . . . . . . . . Drone Launches 3 | . . . . . . . . . 3 . . . . . . . . . . . Drone Recoveries 1 | . . . . . . . . . 1 . . . . . . . . . . . Exploration | -11 -10 -10 -9 -9 -9 -8 -8 -7 -6 -6 -6 -5 -5 -5 -5 -4 -3 -2 -2 -1 ------------- Run | Yrd Mat Min Mat Min Exi Min Mat Fac Fac Was Fac Fac Was Fac DSF Fac Res Res Tes Acc Turns Passed 12195 | 97 1254 288 1506 629 402 19 1946 1046 1294 150 1073 378 19 174 22 991 127 457 108 215 Spaces Moved 13527 | 73 569 143 555 262 210 11 714 1692 2494 404 1180 817 69 450 46 1980 365 717 327 449 Core 21 | 2 . . . . . . . . . . . . . . . . . . . 19 Treads 628 | . . . 41 23 . . 553 11 . . . . . . . . . . . . Legs 3 | . . . . . . . . . . . . . . . . . . . . 3 Wheels 1923 | 71 569 143 514 239 210 11 161 . . . . . . . . . . . . 5 Hover 54 | . . . . . . . . . . . . . . . . . . . . 54 Flight 10898 | . . . . . . . . 1681 2494 404 1180 817 69 450 46 1980 365 717 327 368 Fastest Speed 17 | 50 95 175 130 190 190 190 190 39 34 34 24 25 25 22 23 25 22 17 24 24 Average Speed 63 | 90 180 175 198 209 190 190 234 41 35 34 33 25 25 23 26 28 26 20 24 37 Slowest Speed 325 | 95 200 175 320 320 190 190 325 325 192 50 114 27 25 25 29 31 31 29 27 110 Overloaded Moves 16 | . . . . . . . . . . . 16 . . . . . . . . . Propulsion Burnouts . | . . . . . . . . . . . . . . . . . . . . . Robots Hopped 102 | . . . . . . . . 32 28 8 9 4 2 . . 7 2 . 5 5 Cave-ins Triggered 1 | . . . . . . . . 1 . . . . . . . . . . . . Exploration Rate (%) 39 | 5 78 23 53 53 61 6 42 46 47 96 34 23 68 15 37 47 12 21 52 15 Regions Visited 20 Branch Regions 5 Pre-discovered Areas 1 | . . 1 . . . . . . . . . . . . . . . . . . Known Exits Taken 5 | . . . . . . . 1 . . . 1 . . 1 . 1 1 . . . Unknown Exits Taken 10 | 1 1 1 1 1 1 1 . 1 . . . . . . . . . 1 1 . Scrap Searched 2 | . . . . 2 . . . . . . . . . . . . . . . . Spaces Dug 89 | . . . . . . . . 15 11 . 5 10 . . . 23 4 14 4 3 Terrain Destroyed 297 | . . . . 30 . . 76 20 11 . 57 10 . . . 55 4 21 4 9 Melee 89 | . . . . . . . . 15 11 . 5 10 . . . 23 4 14 4 3 Projectile 1 | . . . . 1 . . . . . . . . . . . . . . . . AOE 206 | . . . . 29 . . 76 5 . . 51 . . . . 32 . 7 . 6 Terrain Rammed . | . . . . . . . . . . . . . . . . . . . . . Walls Destroyed . | . . . . . . . . . . . . . . . . . . . . . Machines Disabled . | . . . . . . . . . . . . . . . . . . . . . Actions | -11 -10 -10 -9 -9 -9 -8 -8 -7 -6 -6 -6 -5 -5 -5 -5 -4 -3 -2 -2 -1 --------- Run | Yrd Mat Min Mat Min Exi Min Mat Fac Fac Was Fac Fac Was Fac DSF Fac Res Res Tes Acc Total 16333 | 93 684 157 845 307 215 10 870 1948 2863 409 1801 961 67 517 55 2336 388 992 337 478 Wait 1929 | . . . 146 12 . . 8 175 331 . 561 120 . 47 . 291 2 223 6 7 Move 13316 | 72 568 142 554 261 209 10 713 1631 2441 388 1162 809 65 449 45 1965 360 716 317 439 Hop 91 | . . . . . . . . 28 25 7 8 4 1 . . 7 2 . 4 5 Pick Up 127 | 8 29 3 16 4 1 . 9 9 15 1 7 6 . 4 . 7 4 4 . . Fast Attach 82 | 6 . . 5 1 . . 5 7 8 3 10 3 . 2 4 9 3 6 1 9 Attach 39 | 1 . . 6 5 . . 3 7 3 1 5 2 . . . 1 2 . . 3 Detach 16 | . . . . 1 . . . 6 2 2 1 1 . . 1 1 . . . 1 Swap 88 | 3 4 . 15 3 1 . 17 9 1 1 3 2 1 2 1 10 3 11 . 1 Drop 160 | . 19 . 22 . 4 . 20 28 19 5 4 1 . 5 4 11 7 8 1 2 Fire 298 | 3 63 12 78 20 . . 93 2 . . 17 . . . . 3 . 4 . 3 Melee 155 | . . . . . . . . 44 16 1 18 12 . . . 26 5 20 8 5 Ram 7 | . 1 . 3 . . . . . . . . . . . . . . . . 3 Kick . | . . . . . . . . . . . . . . . . . . . . . Crush 2 | . . . . . . . 2 . . . . . . . . . . . . . Escape Stasis 13 | . . . . . . . . . . . . . . 8 . 5 . . . . Rewire . | . . . . . . . . . . . . . . . . . . . . . Trap 10 | . . . . . . . . 2 2 . 5 1 . . . . . . . . Miscellaneous . | . . . . . . . . . . . . . . . . . . . . . Route ------- -11/Scrapyard -10/Materials (discovered 4 exits: *Mat x2 / [*Min x2]) -10/Mines -9/Materials (discovered 3 exits: *Mat / [*Min x2]) -9/Mines -9/Exiles -8/Mines -8/Materials (discovered 3 exits: *Fac x2 / *Sto) -7/Factory -6/Factory (discovered 2 exits: Low x2) -6/Waste -6/Factory (discovered 6 exits: *Fac x4 / Low x2) -5/Factory (discovered 5 exits: *Fac / Upp x2 / Ext x2) -5/Waste -5/Factory (discovered 7 exits: Fac x4 / *Upp / DSF / DSF) -5/DSF -4/Factory (discovered 6 exits: *Res x4 / [*Upp x2]) -3/Research (discovered 2 exits: *Res / DSF) -2/Research -2/Testing -1/Access History --------- Turn | Location | Event 20 | -11/Scrapyard | Discovered new exit (range 16) 98 | -11/Scrapyard | Entered Materials 317 | -10/Materials | Build established: Mutant 365 | -10/Materials | Discovered new exit (range 10) 432 | -10/Materials | Discovered new exit (range 14) 667 | -10/Materials | Discovered new exit (range 16) 1019 | -10/Materials | Discovered new exit (range 11) 1352 | -10/Materials | Entered Mines 1445 | -10/Mines | Learned location of Zion (-6) 1462 | -10/Mines | Found a hidden stash of uninstalled traps 1489 | -10/Mines | Received a Rocket Launcher from a helpful Derelict 1526 | -10/Mines | A weapon hastily lodged in a ceiling crevice suddenly fell to the ground 1601 | -10/Mines | Discovered new exit (range 10) 1633 | -10/Mines | Assisted by bots powering up and referring to "LRC-V3" 1640 | -10/Mines | Entered Materials 1640 | -9/Materials | Accompanied by 3 allies 1640 | -9/Materials | Evolved 2 slots: Propulsion x1, Utility x1 1659 | -9/Materials | Discovered new exit (range 11) 1886 | -9/Materials | Repaired Imp. Heat Sink 1913 | -9/Materials | Repaired Lgt. Treads 1953 | -9/Materials | Repaired Imp. Terrain Scanner 1980 | -9/Materials | Repaired Assault Rifle 2260 | -9/Materials | Build established: Scavenger-Mutant 2338 | -9/Materials | Discovered new exit (range 6) 2730 | -9/Materials | Discovered new exit (range 9) 2778 | -9/Materials | Core integrity fell below 50% 3032 | -9/Materials | Lost 3 parts (1p1n1w) 3146 | -9/Materials | Entered Mines 3450 | -9/Mines | Found a damaged Exp. Sensor Array with a note attached 3456 | -9/Mines | Found Prototype Device 3542 | -9/Mines | Learned 4 Materials zone layouts 3704 | -9/Mines | Assembled infested the area 3768 | -9/Mines | Deemed a non-threat by the Exiles lab entrance 3768 | -9/Mines | Discovered new exit (range 5) 3775 | -9/Mines | Entered Exiles 3819 | -9/Exiles | Met 8R-AWN 3850 | -9/Exiles | Met EX-HEX 3905 | -9/Exiles | Met EX-BIN 3927 | -9/Exiles | Aligned with FarCom system 3929 | -9/Exiles | Given EX-Vault access code 3973 | -9/Exiles | Opened EX-Vault 3986 | -9/Exiles | Found Flying Fortress v7 4031 | -9/Exiles | Warned to stay clear of 0b10 Research branches 4093 | -9/Exiles | Met EX-DEC 4162 | -9/Exiles | Discovered new exit (range 10) 4177 | -9/Exiles | Left Exiles lab with Flying Fortress v7 4177 | -9/Exiles | Entered Mines 4177 | -8/Mines | Discovered new exit (range 9) 4196 | -8/Mines | Entered Materials 4196 | -8/Materials | Evolved 2 slots: Propulsion x1, Utility x1 4197 | -8/Materials | Identified exit to Factory 4613 | -8/Materials | Build established: Mutant 4672 | -8/Materials | Found Powered Armor 4929 | -8/Materials | Build established: Scavenger-Mutant 5318 | -8/Materials | Identified exit to Storage 5397 | -8/Materials | Build established: Mutant 5749 | -8/Materials | Identified Exp. Sensor Array 6059 | -8/Materials | Build established: Skirmisher 6072 | -8/Materials | Discovered exit to Factory (range 13) 6087 | -8/Materials | Destroyed 7 combat bots 6124 | -8/Materials | Lost 4 parts (1p1n1u1w) 6134 | -8/Materials | Core integrity fell below 50% 6142 | -8/Materials | Entered Factory 6142 | -7/Factory | Evolved 2 slots: Propulsion x1, Utility x1 6651 | -7/Factory | Build established: Hacker-Mutant 6837 | -7/Factory | Repaired Cesium-ion Thruster 7032 | -7/Factory | Crushed by falling debris 7050 | -7/Factory | Fabricated M-14 Sweeper? 7186 | -7/Factory | Discovered new exit (range 6) 7188 | -7/Factory | Entered another Factory area 7188 | -6/Factory | Evolved 2 slots: Propulsion x1, Utility x1 7340 | -6/Factory | Repaired Broken Imp. Heat Sink 7617 | -6/Factory | Repaired Imp. Datajack 7671 | -6/Factory | Central database locked down 7683 | -6/Factory | Fabricated Cesium-ion Thruster? 7756 | -6/Factory | Identified exit to Lower Caves 8037 | -6/Factory | Fabricated Cesium-ion Thruster? 8187 | -6/Factory | Repaired Fission Core 8482 | -6/Factory | Manually triggered Chute Trap 8482 | -6/Factory | Sucked down chute 8482 | -6/Factory | Entered Waste 8482 | -6/Waste | The area was eerily silent 8594 | -6/Waste | Discovered new exit (range 16) 8632 | -6/Waste | Entered Factory 8819 | -6/Factory | Repaired Field Propulsion Array 8845 | -6/Factory | Discovered new exit (range 15) 8872 | -6/Factory | Build established: Hacker-Scout 8903 | -6/Factory | Identified exit to Factory 9236 | -6/Factory | Lost 7 parts (2p3n1u1w) 9349 | -6/Factory | Repaired Field Propulsion Array 9420 | -6/Factory | Repaired Cld. VTOL Module 9460 | -6/Factory | Repaired Cesium-ion Thruster 9511 | -6/Factory | Repaired Lrn. Missile Launcher 9551 | -6/Factory | Repaired Surge Thruster 9578 | -6/Factory | Repaired Sml. Storage Unit 9705 | -6/Factory | Entered another Factory area 9705 | -5/Factory | Evolved 2 slots: Propulsion x1, Utility x1 9877 | -5/Factory | Discovered new exit (range 15) 9950 | -5/Factory | Identified exit to Upper Caves 9950 | -5/Factory | Identified exit to Extension 10083 | -5/Factory | Sucked down chute 10083 | -5/Factory | Entered Waste 10089 | -5/Waste | Spotted C-40 Crusher 10094 | -5/Waste | Spotted C-40 Crusher 10097 | -5/Waste | Discovered new exit (range 16) 10097 | -5/Waste | Spotted C-40 Crusher 10097 | -5/Waste | Spotted C-40 Crusher 10097 | -5/Waste | Spotted C-40 Crusher 10098 | -5/Waste | EMP discharged 10102 | -5/Waste | Entered Factory 10112 | -5/Factory | Identified exit to DSF 10165 | -5/Factory | Build established: Hacker-Sprinter 10249 | -5/Factory | Discovered exit to Upper Caves (range 13) 10261 | -5/Factory | Identified exit to Factory 10276 | -5/Factory | Identified exit to DSF 10276 | -5/Factory | Entered DSF 10291 | -5/DSF | Discovered exit to Factory (range 16) 10298 | -5/DSF | Entered Factory 10298 | -4/Factory | Evolved 2 slots: Power x1, Propulsion x1 10430 | -4/Factory | Discovered new exit (range 16) 10464 | -4/Factory | Discovered new exit (range 16) 10468 | -4/Factory | Identified exit to Research 10471 | -4/Factory | Discovered new exit (range 13) 10485 | -4/Factory | Build established: Hacker-Ninja 10613 | -4/Factory | Repaired Q-thruster 10753 | -4/Factory | Repaired Q-thruster 11010 | -4/Factory | Central database locked down 11014 | -4/Factory | Fabricated H-77 Assassin? 11125 | -4/Factory | Repaired Lrn. Missile Launcher 11176 | -4/Factory | Repaired Hyp. Gauss Rifle 11289 | -4/Factory | Entered Research 11289 | -3/Research | Evolved 2 slots: Propulsion x1, Utility x1 11330 | -3/Research | Identified exit to DSF 11365 | -3/Research | Found Gamma Bomb Array 11403 | -3/Research | Discovered new exit (range 6) 11408 | -3/Research | Identified exit to Research 11416 | -3/Research | Entered another Research area 11416 | -2/Research | Evolved 2 slots: Propulsion x1, Utility x1 11497 | -2/Research | Spotted B-90 Cyclops 11629 | -2/Research | Spotted B-90 Cyclops 11656 | -2/Research | Build established: Hacker-Sprinter 11855 | -2/Research | Discovered new exit (range 9) 11873 | -2/Research | Entered Testing 11874 | -2/Testing | Maximum security lockdown engaged 11908 | -2/Testing | Spotted PX-DPTKAZ5BH0 11970 | -2/Testing | Discovered new exit (range 10) 11981 | -2/Testing | Entered Access 11981 | -1/Access | Evolved 2 slots: Propulsion x1, Utility x1 12077 | -1/Access | Spotted B-99 Colossus 12078 | -1/Access | Spotted B-99 Colossus 12112 | -1/Access | Core integrity fell below 50% 12172 | -1/Access | Lost 23 parts (2p11n7u3w) 12181 | -1/Access | Core integrity fell below 20% 12196 | -1/Access | Self-destructed Last Messages --------------- 12128_ S-43 Plague destroyed. 12137_ Centrium Wheel destroyed. 12141_ Acquired Imp. Gyrokinetic Inverter. 12141_ Xenon Bombardment Thruster destroyed. 12148_ Slammed into K-01 Serf. 12151_ Slammed into R-10 Processor. 12159_ T-07 Excavator destroyed. 12168_ Acquired Biometal Leg. 12175_ Slammed into U-05 Engineer. 12177_ K-01 Serf cleans the Hyperwave Decoder. 12181_ Penetrated by Slug. 12189_ Slug penetrates T-07 Excavator. 12189_ Penetrated by Slug. 12190_ Imp. Gyrokinetic Inverter destroyed. 12193_ Penetrated by Slug. 12193_ Slug penetrates Wall. 12193_ Penetrated by Slug. 12193_ Dropped Biometal Leg. 12196_ Penetrated by Slug. Map ----- +----------------------------------------------------+ | #????????????# # #? | | #????????????# # #? | | #????????????# # #? | | #????????????# # #? | | ##"#### #????????????# ##############? | | ?###??# #????????????# #?????????????? | | ??????# #????????????# #?????????????? | | ??????# #????????????# #?????????????? | | ??????# #????????????# #?????????????? | | ??????# #????????????# #?????????????? | | ??????# #????????????# #?????????????? | | ??????# #????????????# #?????????????? | | ??????# #????????????# #?????????????? | | ??""""# gl#????????????# #?????????????? | | ??""""# #????????????# #?????????????? | | ???? + #????????????# #?????????????? | | ??????# #????????????# #?????????????? | | ??????# #????????????# ^ #?????????????? | | ??????# ############## #?????????????? | | ??????# h #?????????????? | | ??????# #?????????????? | | ??????# #?????????????? | | ??????# t h ##############? | | ??????# # #? | | ??????# # #? | | ??????# s = @ # #? | | ?#########+################# # #? | | ?# #????????????# # " ?? | | ?# #????????????# # """ ??? | | ?# #????????????# + ] """ ???? | | ?# " ############## # " #? | | ?# """" # # # #? | | ## """"" # # # #? | | + """"" # " # w# #? | | ## """" # = """" # # #? | | ?# " # """"" # ##############? | | ?# # """"" + #?????????????# | | ?# # """" # #?????????????# | | ?# # " # #?????????????# | | ?######/####### # ############### | | ?????? ??????# # # | | ????? ??????+ ""T"" # # | | ??? ???????# """"" # + | | ??? ???????############## + | | ##?????????????????????????# # | | ???????????????????????????# # | | ???????????????????????????# # | | ???????????????????????????###########+########### | | ????????????????????????????????+ #???# | | ????????????????????????????????# #???# | +----------------------------------------------------+ Best States ------------- Heat Dissipation 83 Energy Generation 45 Energy Capacity 440 Matter Stores 300 Matter Capacity 300 Sight Range 16 Robot Scan Range 20 Terrain Scan Range 20 Terrain Scan Density 310 ECM Strength 2 Jamming Range 14 Armor Coverage 550 Resistance: KI 25 Core Shielding 30 Utility Shielding 66 Evasion (%) 66 Recoil Reduction 4 Offensive Hacking 28 Defensive Hacking 22 Item Schematics ----------------- Imp. Heat Sink | -9/Materials | Scanalyzed Assault Rifle | -9/Materials | Scanalyzed Hvy. Assault Rifle | -9/Materials | Scanalyzed Mak. Hammer | -9/Materials | Scanalyzed Rocket Launcher | -9/Materials | Scanalyzed Transport Network Coupler | -9/Materials | Scanalyzed Datajack | -9/Materials | Scanalyzed Axe | -8/Materials | Scanalyzed Cesium-ion Thruster | -6/Factory | Scanalyzed Lgt. Deuterium Engine | -5/Factory | Scanalyzed Micro-nuke Launcher | -4/Factory | Scanalyzed Robot Schematics ------------------ H-77 Assassin | -4/Factory | Hacked Fabricated ------------ M-14 Sweeper | x1 | -7/Factory | Preloaded Cesium-ion Thruster | x2 | -6/Factory Cesium-ion Thruster | x2 | -6/Factory H-77 Assassin | x2 | -4/Factory Alien Tech Used ----------------- None Achievements -------------- Below Maximum Efficiency My Command Is Your Wish Wheee! Challenges ------------ None Game ------ Seed EncryptedCoilHumpback Manual? 0 Play Time 03:08:52 Cumulative 83.4 hours Start 2024.11.27 @ 19:10:36 End 2024.11.29 @ 12:06:59 Sessions 5 Manual Loads 0 Difficulty Rogue Special Mode None Game No. 104 Rogue 60 Adventurer 44 Explorer 0 Win Type - Total 0 Types 0/0/0/0/0/0/0/0/0 Lore% 22 Gallery% 48 Achievement% 39 Wizard Run 0 Options --------- Layout 1 ASCII 0 Keyboard 1 Movement Vi Keybinds 0 Fullscreen 1 Font 24/Terminus Map View 50x35 Zoom Use 0% Tactical HUD 1 Map Filters NONE Filters NONE Steam 1 RUN: 3ce2760e-76ca-421c-aca8-2167d736b75b